[Event "*** Titled Tuesday 3|2 Blitz"]
[Site "Chess.com"]
[Date "2015.12.01"]
[Round "3"]
[White "spectralsoul"]
[Black "kikydu96"]
[Result "1-0"]
[WhiteElo "2477"]
[BlackElo "2251"]
[TimeControl "180+2"]
[EndTime "11:32:30 PST"]
[Termination "spectralsoul won by resignation"]

1. g3 {[%clk 0:02:59.5]} 1... d5 {[%clk 0:03:00.3]} 2. Bg2 {[%clk 0:03:00.5]}
2... Nf6 {[%clk 0:03:00.7]} 3. d4 {[%clk 0:03:00.3]} 3... c6 {[%clk 0:03:02]} 4.
c4 {[%clk 0:03:01.5]} 4... Bf5 {[%clk 0:03:02]} 5. Nd2 {[%clk 0:02:59.7]} 5...
e6 {[%clk 0:03:02.9]} 6. Ngf3 {[%clk 0:03:00.8]} 6... h6 {[%clk 0:03:03.4]} 7.
O-O {[%clk 0:03:01.5]} 7... Nbd7 {[%clk 0:03:04.6]} 8. Re1 {[%clk 0:02:56.8]}
8... Be7 {[%clk 0:03:05.5]} 9. a3 {[%clk 0:02:55.3]} 9... O-O {[%clk 0:03:06]}
10. b4 {[%clk 0:02:56.4]} 10... a5 {[%clk 0:03:03.5]} 11. bxa5 {[%clk 0:02:28]}
11... Qxa5 {[%clk 0:02:59.6]} 12. Bb2 {[%clk 0:02:29.4]} 12... Ne4 {[%clk
0:02:56.1]} 13. Qc1 {[%clk 0:02:28.9]} 13... Nxd2 {[%clk 0:02:49.6]} 14. Nxd2
{[%clk 0:02:29.6]} 14... Bg5 {[%clk 0:02:50.2]} 15. e3 {[%clk 0:02:29.2]} 15...
Nb6 {[%clk 0:02:46.6]} 16. Bc3 {[%clk 0:02:23.2]} 16... Qa6 {[%clk 0:02:46.5]}
17. Bb4 {[%clk 0:02:22.8]} 17... Rfc8 {[%clk 0:02:29.1]} 18. Bf1 {[%clk
0:02:23.5]} 18... Qa4 {[%clk 0:02:26.2]} 19. Qb2 {[%clk 0:02:20.9]} 19... Nd7
{[%clk 0:02:21.6]} 20. e4 {[%clk 0:02:13.8]} 20... dxe4 {[%clk 0:02:12.9]} 21.
Nxe4 {[%clk 0:02:14.5]} 21... Bxe4 {[%clk 0:02:14.1]} 22. Rxe4 {[%clk
0:02:16.4]} 22... Bf6 {[%clk 0:02:15.7]} 23. Bc3 {[%clk 0:02:16.1]} 23... c5
{[%clk 0:02:15.1]} 24. dxc5 {[%clk 0:01:37.5]} 24... Bxc3 {[%clk 0:02:10.5]} 25.
Qxc3 {[%clk 0:01:39.4]} 25... Nxc5 {[%clk 0:02:11.1]} 26. Rg4 {[%clk 0:01:40.5]}
26... g6 {[%clk 0:01:59.4]} 27. Qe3 {[%clk 0:01:36.5]} 27... Kh7 {[%clk
0:01:43.5]} 28. Rf4 {[%clk 0:01:35]} 28... f5 {[%clk 0:01:39]} 29. Rh4 {[%clk
0:01:35.3]} 29... h5 {[%clk 0:01:37.4]} 30. Rd4 {[%clk 0:01:32.1]} 30... Nb3
{[%clk 0:01:33]} 31. Rb1 {[%clk 0:01:29.6]} 31... Nc5 {[%clk 0:01:03.9]} 32. Rb5
{[%clk 0:01:07.5]} 32... Rc7 {[%clk 0:00:39.4]} 33. Qe5 {[%clk 0:00:57.8]} 33...
Rac8 {[%clk 0:00:38.5]} 34. Rd6 {[%clk 0:00:50.8]} 34... Qxc4 {[%clk 0:00:38.1]}
35. Bxc4 {[%clk 0:00:50.9]} 1-0

[Event "*** Titled Tuesday 3|2 Blitz"]
[Site "Chess.com"]
[Date "2015.12.01"]
[Round "3"]
[White "BakaPG"]
[Black "FabianEnglert"]
[Result "1-0"]
[WhiteElo "2486"]
[BlackElo "2301"]
[TimeControl "180+2"]
[EndTime "11:32:50 PST"]
[Termination "BakaPG won by resignation"]

1. e4 {[%clk 0:03:01.9]} 1... g6 {[%clk 0:03:00.7]} 2. d4 {[%clk 0:03:01.4]}
2... Bg7 {[%clk 0:03:02]} 3. Nc3 {[%clk 0:03:02]} 3... d6 {[%clk 0:03:02.7]} 4.
Be3 {[%clk 0:03:00.8]} 4... a6 {[%clk 0:03:03.8]} 5. Qd2 {[%clk 0:02:59.9]} 5...
Nd7 {[%clk 0:03:05.4]} 6. f3 {[%clk 0:02:57.8]} 6... b5 {[%clk 0:03:06.3]} 7.
Nge2 {[%clk 0:02:56.2]} 7... Bb7 {[%clk 0:03:07.2]} 8. g4 {[%clk 0:02:55.6]}
8... Rc8 {[%clk 0:03:06.7]} 9. Ng3 {[%clk 0:02:52.6]} 9... c5 {[%clk 0:03:04.7]}
10. dxc5 {[%clk 0:02:51.5]} 10... Nxc5 {[%clk 0:03:06.6]} 11. a3 {[%clk
0:02:47.3]} 11... Nf6 {[%clk 0:03:02.9]} 12. Bg2 {[%clk 0:02:40.2]} 12... h5
{[%clk 0:02:58.7]} 13. g5 {[%clk 0:02:39.3]} 13... Nfd7 {[%clk 0:02:59.5]} 14.
O-O {[%clk 0:02:37.4]} 14... Ne5 {[%clk 0:02:54.8]} 15. b3 {[%clk 0:02:13]}
15... O-O {[%clk 0:02:53.2]} 16. Nge2 {[%clk 0:02:11]} 16... Re8 {[%clk
0:02:29.1]} 17. h3 {[%clk 0:02:08.4]} 17... Qc7 {[%clk 0:02:27.4]} 18. Rad1
{[%clk 0:02:07.1]} 18... Qb8 {[%clk 0:02:20.6]} 19. f4 {[%clk 0:02:00.7]} 19...
Nc6 {[%clk 0:02:21.5]} 20. Nd5 {[%clk 0:01:59.9]} 20... Nd7 {[%clk 0:02:16.8]}
21. f5 {[%clk 0:01:52.4]} 21... Nde5 {[%clk 0:02:11.6]} 22. f6 {[%clk
0:01:51.8]} 22... Bh8 {[%clk 0:02:06.4]} 23. fxe7 {[%clk 0:01:49.9]} 23... Nxe7
{[%clk 0:02:06]} 24. Nf6+ {[%clk 0:01:46.9]} 24... Bxf6 {[%clk 0:02:03.8]} 25.
gxf6 {[%clk 0:01:47.6]} 25... N7c6 {[%clk 0:02:04]} 26. Bf2 {[%clk 0:01:40.8]}
26... Kh7 {[%clk 0:02:03.3]} 27. Qg5 {[%clk 0:01:39.4]} 27... Nd8 {[%clk
0:01:56.2]} 28. Be3 {[%clk 0:01:39.1]} 28... Ne6 {[%clk 0:01:57.4]} 29. Qh6+
{[%clk 0:01:37.5]} 29... Kg8 {[%clk 0:01:58.8]} 30. Nf4 {[%clk 0:01:30.3]} 30...
Qc7 {[%clk 0:01:22.7]} 31. Rxd6 {[%clk 0:01:24.4]} 31... Rf8 {[%clk 0:01:00.3]}
32. Nxe6 {[%clk 0:00:53.4]} 32... fxe6 {[%clk 0:01:00.9]} 33. Rxe6 {[%clk
0:00:52.5]} 33... Rf7 {[%clk 0:00:36]} 34. Rxe5 {[%clk 0:00:45.8]} 34... Qxe5
{[%clk 0:00:37.9]} 35. Qxg6+ {[%clk 0:00:46.1]} 35... Kf8 {[%clk 0:00:39.6]} 36.
Bh6+ {[%clk 0:00:46.4]} 36... Ke8 {[%clk 0:00:41.2]} 37. Qg8+ {[%clk 0:00:46.7]}
1-0

[Event "*** Titled Tuesday 3|2 Blitz"]
[Site "Chess.com"]
[Date "2015.12.01"]
[Round "3"]
[White "stefanodinn"]
[Black "oskariot"]
[Result "0-1"]
[WhiteElo "2144"]
[BlackElo "2249"]
[TimeControl "180+2"]
[EndTime "11:32:57 PST"]
[Termination "oskariot won by resignation"]

1. e4 {[%clk 0:03:01.9]} 1... c5 {[%clk 0:03:00.7]} 2. Nf3 {[%clk 0:03:02.1]}
2... d6 {[%clk 0:03:02.1]} 3. d4 {[%clk 0:03:02.9]} 3... cxd4 {[%clk 0:03:04]}
4. Nxd4 {[%clk 0:03:03.8]} 4... Nf6 {[%clk 0:03:05.5]} 5. f3 {[%clk 0:03:04.5]}
5... Nc6 {[%clk 0:02:56.4]} 6. c4 {[%clk 0:03:04.4]} 6... g6 {[%clk 0:02:57.5]}
7. Nc3 {[%clk 0:03:04]} 7... Bg7 {[%clk 0:02:58.6]} 8. Be3 {[%clk 0:03:04.1]}
8... O-O {[%clk 0:02:59.6]} 9. Be2 {[%clk 0:03:03.8]} 9... Bd7 {[%clk
0:03:01.2]} 10. O-O {[%clk 0:02:58.3]} 10... Nxd4 {[%clk 0:03:02.2]} 11. Bxd4
{[%clk 0:02:57.7]} 11... a5 {[%clk 0:03:03.4]} 12. Qd2 {[%clk 0:02:52.7]} 12...
Bc6 {[%clk 0:03:03.3]} 13. b3 {[%clk 0:02:52.9]} 13... Nd7 {[%clk 0:03:04.2]}
14. Be3 {[%clk 0:02:53.6]} 14... Nc5 {[%clk 0:03:04.6]} 15. Rab1 {[%clk
0:02:54.4]} 15... e6 {[%clk 0:03:03.1]} 16. Rfd1 {[%clk 0:02:46.7]} 16... Be5
{[%clk 0:03:02.9]} 17. Bf1 {[%clk 0:02:14.2]} 17... Qh4 {[%clk 0:03:03.2]} 18.
g3 {[%clk 0:02:10.9]} 18... Qf6 {[%clk 0:03:03.5]} 19. Nb5 {[%clk 0:01:38.5]}
19... Bxb5 {[%clk 0:02:50.7]} 20. cxb5 {[%clk 0:01:39.1]} 20... Qxf3 {[%clk
0:02:52]} 21. Bg2 {[%clk 0:01:39]} 21... Qf6 {[%clk 0:02:53]} 22. Bg5 {[%clk
0:01:35.9]} 22... Qh8 {[%clk 0:02:40.5]} 23. Be7 {[%clk 0:01:16.4]} 23... b6
{[%clk 0:02:16.1]} 24. Bxf8 {[%clk 0:01:10]} 24... Rxf8 {[%clk 0:02:16.8]} 25.
Kh1 {[%clk 0:01:10.2]} 25... h5 {[%clk 0:02:17.7]} 26. Qf2 {[%clk 0:00:51.3]}
26... Qh6 {[%clk 0:02:08.3]} 27. Bf3 {[%clk 0:00:47.3]} 27... Qg5 {[%clk
0:02:03.6]} 28. a3 {[%clk 0:00:46.3]} 28... f5 {[%clk 0:01:45.7]} 29. exf5
{[%clk 0:00:44]} 29... Qxf5 {[%clk 0:01:20.8]} 30. Rf1 {[%clk 0:00:38.5]} 30...
Kg7 {[%clk 0:00:56]} 31. b4 {[%clk 0:00:33.1]} 31... axb4 {[%clk 0:00:54.9]} 32.
axb4 {[%clk 0:00:32.9]} 32... Ne4 {[%clk 0:00:53.1]} 33. Qxb6 {[%clk 0:00:14]}
33... Nd2 {[%clk 0:00:49.7]} 0-1

[Event "*** Titled Tuesday 3|2 Blitz"]
[Site "Chess.com"]
[Date "2015.12.01"]
[Round "3"]
[White "SlovenskiZmaj"]
[Black "motivated_bishop"]
[Result "0-1"]
[WhiteElo "2299"]
[BlackElo "2269"]
[TimeControl "180+2"]
[EndTime "11:33:29 PST"]
[Termination "motivated_bishop won by resignation"]

1. e4 {[%clk 0:03:01.9]} 1... e5 {[%clk 0:03:00]} 2. Nf3 {[%clk 0:03:02.9]} 2...
Nc6 {[%clk 0:03:01.2]} 3. Bc4 {[%clk 0:03:04.4]} 3... Bc5 {[%clk 0:03:01.8]} 4.
c3 {[%clk 0:03:05.2]} 4... Nf6 {[%clk 0:03:03.2]} 5. d3 {[%clk 0:03:06.7]} 5...
a6 {[%clk 0:03:04.3]} 6. Nbd2 {[%clk 0:03:08]} 6... Ba7 {[%clk 0:03:05]} 7. b4
{[%clk 0:03:06.6]} 7... O-O {[%clk 0:02:53.9]} 8. O-O {[%clk 0:03:06.8]} 8... d5
{[%clk 0:02:54.8]} 9. Bb3 {[%clk 0:03:07.9]} 9... h6 {[%clk 0:02:41.9]} 10. h3
{[%clk 0:03:07.9]} 10... Be6 {[%clk 0:02:42.5]} 11. Qe2 {[%clk 0:03:07.4]} 11...
d4 {[%clk 0:02:31.8]} 12. c4 {[%clk 0:02:56.7]} 12... Nxb4 {[%clk 0:02:20.8]}
13. Nxe5 {[%clk 0:02:55.1]} 13... Re8 {[%clk 0:02:18.4]} 14. f4 {[%clk
0:02:46.7]} 14... Nd7 {[%clk 0:01:50.3]} 15. Nxd7 {[%clk 0:02:40.8]} 15... Bxd7
{[%clk 0:01:49]} 16. a3 {[%clk 0:02:36.8]} 16... Nc6 {[%clk 0:01:45.1]} 17. Nf3
{[%clk 0:02:29.6]} 17... Bc5 {[%clk 0:01:32.9]} 18. Kh2 {[%clk 0:02:25]} 18...
a5 {[%clk 0:01:27.6]} 19. g4 {[%clk 0:02:11.9]} 19... a4 {[%clk 0:01:26]} 20.
Bc2 {[%clk 0:02:07.9]} 20... Na5 {[%clk 0:01:09.4]} 21. Rb1 {[%clk 0:02:07.7]}
21... Ra6 {[%clk 0:01:02.8]} 22. Bd2 {[%clk 0:02:03.2]} 22... Bxa3 {[%clk
0:00:29.2]} 23. Bxa5 {[%clk 0:01:50.3]} 23... Rxa5 {[%clk 0:00:31.1]} 24. Rxb7
{[%clk 0:01:51.6]} 24... Bc5 {[%clk 0:00:20.8]} 25. Ra1 {[%clk 0:01:41.8]} 25...
a3 {[%clk 0:00:21.6]} 26. Nd2 {[%clk 0:01:33.3]} 26... Bc6 {[%clk 0:00:22.5]}
27. Rbb1 {[%clk 0:01:32.1]} 27... Qf6 {[%clk 0:00:22.1]} 28. Qf3 {[%clk
0:01:26.9]} 28... g5 {[%clk 0:00:22.6]} 29. Nb3 {[%clk 0:01:18.8]} 29... Rea8
{[%clk 0:00:11.7]} 30. Nxa5 {[%clk 0:01:16.9]} 30... Rxa5 {[%clk 0:00:13.6]} 31.
Rb8+ {[%clk 0:01:13.9]} 31... Kg7 {[%clk 0:00:14.5]} 32. Kg2 {[%clk 0:00:57.5]}
32... gxf4 {[%clk 0:00:12.8]} 33. Bb3 {[%clk 0:00:42.6]} 33... Bd6 {[%clk
0:00:13.3]} 34. Ba2 {[%clk 0:00:43.7]} 34... h5 {[%clk 0:00:14.3]} 35. Rab1
{[%clk 0:00:43.2]} 35... hxg4 {[%clk 0:00:15.2]} 36. Qxg4+ {[%clk 0:00:43.1]}
36... Rg5 {[%clk 0:00:15.3]} 37. Kf3 {[%clk 0:00:42.8]} 37... Rxg4 {[%clk
0:00:16]} 38. hxg4 {[%clk 0:00:43.1]} 38... Qh4 {[%clk 0:00:17]} 39. c5 {[%clk
0:00:37.5]} 39... Qg3+ {[%clk 0:00:16.1]} 40. Ke2 {[%clk 0:00:38.9]} 40... f3+
{[%clk 0:00:16.7]} 0-1

[Event "*** Titled Tuesday 3|2 Blitz"]
[Site "Chess.com"]
[Date "2015.12.01"]
[Round "3"]
[White "LyonBeast"]
[Black "amaidel"]
[Result "1-0"]
[WhiteElo "2714"]
[BlackElo "2393"]
[TimeControl "180+2"]
[EndTime "11:33:35 PST"]
[Termination "LyonBeast won by resignation"]

1. Nf3 {[%clk 0:02:49.1]} 1... f5 {[%clk 0:02:59.6]} 2. d3 {[%clk 0:02:41.6]}
2... d6 {[%clk 0:02:57.5]} 3. e4 {[%clk 0:02:36.8]} 3... e5 {[%clk 0:02:53.5]}
4. Nc3 {[%clk 0:02:38.3]} 4... f4 {[%clk 0:02:46.2]} 5. d4 {[%clk 0:02:38.1]}
5... Nd7 {[%clk 0:02:44.7]} 6. dxe5 {[%clk 0:02:33.4]} 6... dxe5 {[%clk
0:02:41.5]} 7. Bc4 {[%clk 0:02:31]} 7... Bb4 {[%clk 0:02:30.5]} 8. O-O {[%clk
0:01:55.3]} 8... Bxc3 {[%clk 0:01:54.6]} 9. bxc3 {[%clk 0:01:57.2]} 9... Qe7
{[%clk 0:01:51.5]} 10. a4 {[%clk 0:01:52.8]} 10... Nb6 {[%clk 0:01:46.8]} 11.
Ba3 {[%clk 0:01:50.9]} 11... c5 {[%clk 0:01:47.4]} 12. Bb3 {[%clk 0:01:33.6]}
12... Bg4 {[%clk 0:01:46.1]} 13. a5 {[%clk 0:01:32.3]} 13... Rd8 {[%clk
0:01:45.8]} 14. Qe2 {[%clk 0:01:04.1]} 14... Nd7 {[%clk 0:01:39.9]} 15. Rfd1
{[%clk 0:01:05.4]} 15... Ngf6 {[%clk 0:01:36]} 16. Rd2 {[%clk 0:01:04.1]} 16...
Be6 {[%clk 0:01:34.8]} 17. Rad1 {[%clk 0:00:58]} 17... Bxb3 {[%clk 0:01:32.2]}
18. cxb3 {[%clk 0:00:59.9]} 18... O-O {[%clk 0:01:33.1]} 19. Qc4+ {[%clk
0:01:00.3]} 19... Kh8 {[%clk 0:01:32.2]} 20. Ng5 {[%clk 0:00:59.5]} 20... Rc8
{[%clk 0:01:26.6]} 21. Rd6 {[%clk 0:00:50.1]} 21... h6 {[%clk 0:01:19.6]} 22.
Nf3 {[%clk 0:00:38.5]} 22... b6 {[%clk 0:01:15.4]} 23. Nh4 {[%clk 0:00:38.2]}
23... Kh7 {[%clk 0:01:14.8]} 24. Nf5 {[%clk 0:00:38.9]} 24... Qf7 {[%clk
0:01:12.1]} 25. f3 {[%clk 0:00:32.9]} 25... bxa5 {[%clk 0:00:53]} 26. Qxf7
{[%clk 0:00:30.9]} 26... Rxf7 {[%clk 0:00:53.4]} 27. Ra6 {[%clk 0:00:32]} 27...
Rb8 {[%clk 0:00:45.5]} 28. Rxa7 {[%clk 0:00:29.5]} 28... Rxb3 {[%clk 0:00:45.5]}
29. Bxc5 {[%clk 0:00:30.4]} 29... Rxc3 {[%clk 0:00:43.5]} 30. Bd6 {[%clk
0:00:27.6]} 30... g6 {[%clk 0:00:39.7]} 31. Ne7 {[%clk 0:00:22]} 31... Nb6
{[%clk 0:00:20.2]} 32. Bxe5 {[%clk 0:00:22]} 32... Rb3 {[%clk 0:00:17.1]} 33.
Bxf6 {[%clk 0:00:22.2]} 33... Rxf6 {[%clk 0:00:08.4]} 34. Nd5+ {[%clk
0:00:21.8]} 1-0

[Event "*** Titled Tuesday 3|2 Blitz"]
[Site "Chess.com"]
[Date "2015.12.01"]
[Round "3"]
[White "Makalexa"]
[Black "silverback96"]
[Result "1-0"]
[WhiteElo "2062"]
[BlackElo "1907"]
[TimeControl "180+2"]
[EndTime "11:33:35 PST"]
[Termination "Makalexa won by resignation"]

1. e4 {[%clk 0:02:55.6]} 1... e6 {[%clk 0:03:00.5]} 2. d4 {[%clk 0:02:56]} 2...
d5 {[%clk 0:03:02.1]} 3. exd5 {[%clk 0:02:57.1]} 3... exd5 {[%clk 0:03:03.1]} 4.
Nf3 {[%clk 0:02:58.7]} 4... Bd6 {[%clk 0:03:03.6]} 5. c4 {[%clk 0:02:58.8]} 5...
dxc4 {[%clk 0:03:04]} 6. Bxc4 {[%clk 0:02:57.6]} 6... Nf6 {[%clk 0:03:05.6]} 7.
Nc3 {[%clk 0:02:57.7]} 7... O-O {[%clk 0:03:07.5]} 8. O-O {[%clk 0:02:58.3]}
8... Nc6 {[%clk 0:03:09.2]} 9. Re1 {[%clk 0:02:58.6]} 9... Bg4 {[%clk 0:03:06]}
10. h3 {[%clk 0:02:58.8]} 10... Bxf3 {[%clk 0:03:06.7]} 11. Qxf3 {[%clk
0:02:59.6]} 11... Nxd4 {[%clk 0:03:07.9]} 12. Qd3 {[%clk 0:02:57]} 12... c5
{[%clk 0:03:05.3]} 13. Bg5 {[%clk 0:02:56.2]} 13... h6 {[%clk 0:03:02.6]} 14.
Be3 {[%clk 0:02:50.6]} 14... a6 {[%clk 0:02:59.1]} 15. a4 {[%clk 0:02:50.2]}
15... Rb8 {[%clk 0:02:53]} 16. Rad1 {[%clk 0:02:48.1]} 16... Re8 {[%clk
0:02:41]} 17. g3 {[%clk 0:02:37.4]} 17... Qc7 {[%clk 0:02:26.2]} 18. Bxd4 {[%clk
0:02:32.8]} 18... cxd4 {[%clk 0:02:28.1]} 19. Rxe8+ {[%clk 0:02:25]} 19... Rxe8
{[%clk 0:02:30]} 20. Nd5 {[%clk 0:02:12.6]} 20... Nxd5 {[%clk 0:02:20.5]} 21.
Bxd5 {[%clk 0:02:13.4]} 21... Bc5 {[%clk 0:01:26.3]} 22. Rc1 {[%clk 0:02:02.7]}
22... Qd6 {[%clk 0:01:23.4]} 23. Qc4 {[%clk 0:01:43.4]} 23... Rc8 {[%clk
0:00:57]} 24. Bxf7+ {[%clk 0:01:41.5]} 24... Kh8 {[%clk 0:00:58.5]} 25. b4
{[%clk 0:01:31.2]} 25... b6 {[%clk 0:00:38.4]} 26. bxc5 {[%clk 0:01:26.5]} 26...
Rxc5 {[%clk 0:00:29.2]} 27. Qf1 {[%clk 0:01:26.9]} 27... d3 {[%clk 0:00:21]} 28.
Rxc5 {[%clk 0:01:25.1]} 28... bxc5 {[%clk 0:00:22.9]} 29. Bb3 {[%clk 0:01:13.8]}
29... d2 {[%clk 0:00:24]} 30. Bd1 {[%clk 0:00:56.4]} 30... Qe5 {[%clk
0:00:23.3]} 31. Qe2 {[%clk 0:00:49.2]} 31... Qa1 {[%clk 0:00:20.4]} 32. Qe8+
{[%clk 0:00:46.9]} 32... Kh7 {[%clk 0:00:21.3]} 33. Qe4+ {[%clk 0:00:46.2]}
33... g6 {[%clk 0:00:21.5]} 34. Qc2 {[%clk 0:00:39]} 34... Qd4 {[%clk
0:00:19.7]} 35. h4 {[%clk 0:00:38.9]} 35... c4 {[%clk 0:00:20.6]} 36. h5 {[%clk
0:00:39]} 36... c3 {[%clk 0:00:17.1]} 37. Qxg6+ {[%clk 0:00:37.2]} 37... Kh8
{[%clk 0:00:18.5]} 38. Qxh6+ {[%clk 0:00:37.4]} 38... Kg8 {[%clk 0:00:20.4]} 39.
Bb3+ {[%clk 0:00:36]} 1-0

[Event "*** Titled Tuesday 3|2 Blitz"]
[Site "Chess.com"]
[Date "2015.12.01"]
[Round "3"]
[White "VMikhalevski"]
[Black "chessmaxusa"]
[Result "1-0"]
[WhiteElo "2464"]
[BlackElo "2315"]
[TimeControl "180+2"]
[EndTime "11:33:39 PST"]
[Termination "VMikhalevski won by checkmate"]

1. c4 {[%clk 0:03:01.9]} 1... c6 {[%clk 0:02:59.6]} 2. Nf3 {[%clk 0:03:00.2]}
2... d5 {[%clk 0:03:00.6]} 3. e3 {[%clk 0:02:59.3]} 3... Nf6 {[%clk 0:03:00.9]}
4. Nc3 {[%clk 0:02:57.9]} 4... Bf5 {[%clk 0:03:01.8]} 5. cxd5 {[%clk 0:02:54.9]}
5... Nxd5 {[%clk 0:02:59.2]} 6. Qb3 {[%clk 0:02:52.6]} 6... Nb6 {[%clk
0:02:53.9]} 7. a4 {[%clk 0:02:47.3]} 7... a5 {[%clk 0:02:49.8]} 8. d4 {[%clk
0:02:45]} 8... e6 {[%clk 0:02:50.5]} 9. e4 {[%clk 0:02:41.9]} 9... Bg6 {[%clk
0:02:46.2]} 10. Be2 {[%clk 0:02:37]} 10... Bb4 {[%clk 0:02:46.2]} 11. O-O {[%clk
0:02:37.3]} 11... Bxc3 {[%clk 0:02:44.1]} 12. bxc3 {[%clk 0:02:37.5]} 12... Bxe4
{[%clk 0:02:44.9]} 13. Ba3 {[%clk 0:02:37.6]} 13... N8d7 {[%clk 0:02:41.9]} 14.
c4 {[%clk 0:02:28.6]} 14... f6 {[%clk 0:02:33.6]} 15. Qe3 {[%clk 0:02:27]} 15...
f5 {[%clk 0:01:27.8]} 16. Ng5 {[%clk 0:02:23.6]} 16... Nf6 {[%clk 0:01:20.2]}
17. Nxe6 {[%clk 0:02:17.2]} 17... Qd7 {[%clk 0:01:20.6]} 18. Nc5 {[%clk
0:02:17.3]} 18... Qc7 {[%clk 0:01:12]} 19. Ne6 {[%clk 0:02:03.5]} 19... Qd7
{[%clk 0:01:07.3]} 20. d5 {[%clk 0:02:01]} 20... Nc8 {[%clk 0:00:19.2]} 21. Nc5
{[%clk 0:01:39.2]} 21... Qc7 {[%clk 0:00:18.6]} 22. f3 {[%clk 0:01:19.4]} 22...
f4 {[%clk 0:00:18.8]} 23. Qd4 {[%clk 0:01:18.4]} 23... Bf5 {[%clk 0:00:19.1]}
24. Bd3 {[%clk 0:01:08.4]} 24... Bxd3 {[%clk 0:00:18.8]} 25. Rfe1+ {[%clk
0:01:07.1]} 25... Kf7 {[%clk 0:00:20.1]} 26. Qxd3 {[%clk 0:01:02.4]} 26... Nd6
{[%clk 0:00:16.3]} 27. Ne6 {[%clk 0:00:57.7]} 27... Qd7 {[%clk 0:00:14.9]} 28.
dxc6 {[%clk 0:00:57.4]} 28... Qxc6 {[%clk 0:00:06.7]} 29. Ng5+ {[%clk
0:00:56.1]} 29... Kg8 {[%clk 0:00:06.1]} 30. Qxd6 {[%clk 0:00:54.8]} 30... Qxd6
{[%clk 0:00:07.3]} 31. Bxd6 {[%clk 0:00:54.9]} 31... h6 {[%clk 0:00:09.2]} 32.
Ne4 {[%clk 0:00:53.7]} 32... Kf7 {[%clk 0:00:06.8]} 33. Nxf6 {[%clk 0:00:54]}
33... Kxf6 {[%clk 0:00:08.7]} 34. Bxf4 {[%clk 0:00:54.9]} 34... Rac8 {[%clk
0:00:09.6]} 35. Re4 {[%clk 0:00:54.3]} 35... Rhd8 {[%clk 0:00:09.6]} 36. Rb1
{[%clk 0:00:55]} 36... Rc6 {[%clk 0:00:08.5]} 37. Rxb7 {[%clk 0:00:53.9]} 37...
Rd1+ {[%clk 0:00:07.7]} 38. Kf2 {[%clk 0:00:55]} 38... g5 {[%clk 0:00:09]} 39.
Be5+ {[%clk 0:00:55.4]} 39... Kf5 {[%clk 0:00:07.3]} 40. g4+ {[%clk 0:00:54]}
40... Ke6 {[%clk 0:00:06.4]} 41. Bg7+ {[%clk 0:00:50]} 41... Kd6 {[%clk
0:00:06.6]} 42. Bf8# {[%clk 0:00:51.5]} 1-0

[Event "*** Titled Tuesday 3|2 Blitz"]
[Site "Chess.com"]
[Date "2015.12.01"]
[Round "3"]
[White "Frolyanov_D"]
[Black "Canairez"]
[Result "1-0"]
[WhiteElo "2463"]
[BlackElo "2217"]
[TimeControl "180+2"]
[EndTime "11:33:40 PST"]
[Termination "Frolyanov_D won on time"]

1. d4 {[%clk 0:03:01.9]} 1... c6 {[%clk 0:03:01.9]} 2. c4 {[%clk 0:03:00.9]}
2... d5 {[%clk 0:03:03.8]} 3. Nf3 {[%clk 0:03:00.9]} 3... Nf6 {[%clk 0:03:04.9]}
4. Nc3 {[%clk 0:02:59.1]} 4... dxc4 {[%clk 0:03:05.8]} 5. a4 {[%clk 0:02:59.8]}
5... Bf5 {[%clk 0:03:06.6]} 6. Ne5 {[%clk 0:03:00.7]} 6... e6 {[%clk 0:03:07.1]}
7. f3 {[%clk 0:03:00]} 7... Bb4 {[%clk 0:03:08.1]} 8. Nxc4 {[%clk 0:02:48.4]}
8... c5 {[%clk 0:03:08.1]} 9. dxc5 {[%clk 0:02:40.2]} 9... Qxd1+ {[%clk
0:03:04.7]} 10. Kxd1 {[%clk 0:02:41]} 10... Nc6 {[%clk 0:02:47.8]} 11. e4 {[%clk
0:02:39.5]} 11... Bg6 {[%clk 0:02:38.5]} 12. Be3 {[%clk 0:02:36.9]} 12... O-O-O+
{[%clk 0:02:31.2]} 13. Nd6+ {[%clk 0:02:33.2]} 13... Kb8 {[%clk 0:02:22.7]} 14.
Kc2 {[%clk 0:02:33.4]} 14... Nd7 {[%clk 0:02:20.4]} 15. Bb5 {[%clk 0:01:43.3]}
15... Nxc5 {[%clk 0:02:21.2]} 16. Rad1 {[%clk 0:01:31.3]} 16... Rd7 {[%clk
0:01:53.5]} 17. Bf4 {[%clk 0:01:23.5]} 17... Ka8 {[%clk 0:01:45.9]} 18. Bxc6
{[%clk 0:01:20.3]} 18... bxc6 {[%clk 0:01:46.2]} 19. Nc4 {[%clk 0:01:18.6]}
19... Rhd8 {[%clk 0:01:37.8]} 20. Rxd7 {[%clk 0:01:12.9]} 20... Rxd7 {[%clk
0:01:38.4]} 21. Rd1 {[%clk 0:01:11.1]} 21... Rxd1 {[%clk 0:01:36.5]} 22. Nxd1
{[%clk 0:01:12.9]} 22... f6 {[%clk 0:01:26]} 23. Nc3 {[%clk 0:01:10.4]} 23...
Bxc3 {[%clk 0:01:21]} 24. bxc3 {[%clk 0:01:03.2]} 24... Nxa4 {[%clk 0:01:12.5]}
25. Bd6 {[%clk 0:01:02.4]} 25... Bf7 {[%clk 0:00:51.1]} 26. Bf8 {[%clk
0:01:02.5]} 26... g5 {[%clk 0:00:32.9]} 27. Bg7 {[%clk 0:01:02.7]} 27... f5
{[%clk 0:00:32.4]} 28. Ne5 {[%clk 0:00:54.1]} 28... Be8 {[%clk 0:00:32.7]} 29.
Bf6 {[%clk 0:00:54.8]} 29... g4 {[%clk 0:00:33]} 30. fxg4 {[%clk 0:00:49.9]}
30... fxe4 {[%clk 0:00:28.8]} 31. g5 {[%clk 0:00:49.5]} 31... Nc5 {[%clk
0:00:28.4]} 32. h4 {[%clk 0:00:46.3]} 32... a5 {[%clk 0:00:27.8]} 33. g4 {[%clk
0:00:44.4]} 33... a4 {[%clk 0:00:20.7]} 34. h5 {[%clk 0:00:45.4]} 34... a3
{[%clk 0:00:21.3]} 35. g6 {[%clk 0:00:45.3]} 35... hxg6 {[%clk 0:00:21.7]} 36.
h6 {[%clk 0:00:45]} 36... a2 {[%clk 0:00:21.2]} 37. Kb2 {[%clk 0:00:43.1]} 37...
e3 {[%clk 0:00:18.4]} 38. h7 {[%clk 0:00:38.8]} 38... e2 {[%clk 0:00:17.9]} 39.
Nf3 {[%clk 0:00:39.4]} 39... Nd3+ {[%clk 0:00:02.7]} 40. Kxa2 {[%clk 0:00:38.6]}
1-0